Cogmind - Beta 17 @@@ ROGUE MODE // 2026.08.24 @ 13:02:53 Player: IsAway Result: Destroyed by G-47 Trooper with Particle Gun Performance ------------- Evolutions (2) 1000 Regions Visited (7) 1400 Robots Destroyed (52) 260 Value Destroyed (1372) 1372 Prototype IDs (27) 540 Alien Tech Used (0) 0 Bonus (300) 300 TOTAL SCORE: 4872 Bonus ------- Aligned with FarCom 300 Cogmind --------- Core Integrity 0/550 Matter 203/300 Energy 67/140 System Corruption 6% Temperature Cool (9) Movement Core (150) Ox2 Location -8/Materials Parts ------- > --- POWER (2) -------- Light Deuterium Engine > --- PROPULSION (4) --- VSS Leg VSS Leg > --- UTILITY (3) ------ Hacking Suite Hacking Suite > --- WEAPON (2) ------- Katana > --- INVENTORY (5) ---- Heavy Ion Engine Large Storage Unit Large Storage Unit Hardened Medium Armor Plating Peak State ------------ > --- POWER ------------ Light Deuterium Engine Light Nuclear Core > --- PROPULSION ------- Aluminum Leg Aluminum Leg VSS Leg VSS Leg > --- UTILITY ---------- High-capacity Storage Unit Hacking Suite Hacking Suite > --- WEAPON ----------- AWS/Thermal > --- INVENTORY -------- Heavy Ion Engine Light Deuterium Engine Nuclear Core Large Storage Unit Large Storage Unit High-capacity Battery Trap Scanner Melee Analysis Suite Reaction Control System Hardened Medium Armor Plating System Shield Gatling Laser Improved Grenade Launcher Plasma Cutter Katana Katana Axe [Rating: 41] Favorites ----------- Power Nuclear Core Engine Light Ion Engine Power Core Nuclear Core Propulsion VSS Leg Leg VSS Leg Flight Unit Flight Unit Utility Hacking Suite Device Seismic Detector Storage High-capacity Storage Unit Hackware Hacking Suite Protection Light Armor Plating Weapon Improved Medium Laser Energy Gun Improved Medium Laser Ballistic Gun Improved Assault Rifle Launcher Improved Grenade Launcher Special Weapon Mining Laser Slashing Weapon Katana Build | -11 -10 -10 -9 -9 -9 -8 -8 ------- Run | Yrd Mat Min Mat Min Exi Min Mat Slots Evolved 4 | . . . 2 . . . 2 Power 1 | . . . 1 . . . . Propulsion 2 | . . . 1 . . . 1 Utility 1 | . . . . . . . 1 Weapon . | . . . . . . . . Parts Attached 55 | 7 8 5 12 . 3 1 19 Power 12 | 1 1 1 3 . . . 6 Engine 8 | 1 1 1 1 . . . 4 Core 4 | . . . 2 . . . 2 Reactor . | . . . . . . . . Propulsion 17 | 2 2 3 4 . . . 6 Treads . | . . . . . . . . Leg 11 | 2 . . 3 . . . 6 Wheel . | . . . . . . . . Hover . | . . . . . . . . Flight 6 | . 2 3 1 . . . . Utility 9 | 2 2 . 1 . 2 . 2 Device 2 | 1 . . 1 . . . . Storage 4 | 1 . . . . 2 . 1 Processor . | . . . . . . . . Hackware 2 | . 1 . . . . . 1 Protection 1 | . 1 . . . . . . Artifact . | . . . . . . . . Weapon 17 | 2 3 1 4 . 1 1 5 Energy Gun 7 | 2 1 . 2 . 1 1 . Energy Cannon . | . . . . . . . . Ballistic Gun 3 | . . 1 2 . . . . Ballistic Cannon . | . . . . . . . . Launcher 1 | . . . . . . . 1 Special Weapon 1 | . 1 . . . . . . Impact Weapon . | . . . . . . . . Slashing Weapon 5 | . 1 . . . . . 4 Piercing Weapon . | . . . . . . . . Special Melee Weapon . | . . . . . . . . Unidentified Prototypes 4 | . . . 3 . . . 1 Corrupted Parts 1 | . 1 . . . . . . System Corruption 1 | . 1 . . . . . . Parts Lost 18 | . . 1 . . . . 17 Power 5 | . . . . . . . 5 Propulsion 8 | . . 1 . . . . 7 Utility . | . . . . . . . . Weapon 5 | . . . . . . . 5 Highest Loss Streak 9 | . . 1 . . . . 9 To Critical Strikes 1 | . . . . . . . 1 Average Backups 8 | 1 4 5 5 8 9 11 14 Power 1 | . . . . 1 1 1 1 Propulsion 1 | . 2 3 1 1 2 2 1 Utility 3 | . . 1 1 3 3 4 6 Weapon 2 | . 1 1 1 2 2 3 3 Tool/Special . | . . . . . . . . Unused Backups 21 | 1 5 . 2 1 . . 12 Power 2 | . 1 . . . . . 1 Propulsion 4 | 1 2 . 1 . . . . Utility 10 | . . . . 1 . . 9 Weapon 3 | . 1 . 1 . . . 1 Tool/Special 2 | . 1 . . . . . 1 Average Slot Usage (%) 94 | . 98 97 95 100 90 97 92 Engine 4 | . 14 14 3 . . . 7 Core 13 | . . . 15 22 22 22 9 Leg 28 | . 14 . 23 33 33 33 34 Flight 3 | . 12 25 8 . . . . Device 2 | . 12 14 4 . . . . Storage 8 | . 1 . 6 11 11 11 8 Hackware 13 | . 12 14 11 11 11 11 17 Energy Gun 10 | . 17 11 6 11 11 19 6 Ballistic Gun 3 | . . 7 15 11 1 . . Slashing Weapon 4 | . 9 9 . . . . 9 Peak Build Rating 41 | 7 10 10 26 27 37 37 41 Average Rating 26 | 5 8 9 21 26 35 30 33 On Entrance 18 | . 7 9 9 26 27 37 30 Avg Prop Armor Cover (%) . | . . . . . . . . Naked Turns . | . . . . . . . . Heaviest Build 62 | 12 12 9 25 25 62 42 58 Greatest Support 56 | 20 20 8 36 36 36 36 56 Greatest Overweight (x) 17 | . 2 1 . . 1 1 17 Average Overweight (x) . | . . . . . . 1 . Largest Inventory Capacity 20 | 8 8 5 8 8 20 15 20 Average Capacity 12 | 7 5 5 6 8 16 15 18 Most Carried 19 | 3 5 5 8 8 11 13 19 Average Carried 9 | 2 4 4 5 8 9 11 15 Final Capacity 15 | 8 5 5 8 8 15 15 5 Final Carried 13 | 3 5 5 8 8 11 13 4 Class Distribution -------------------- 64% | Mutant 19% | Scavenger-Mutant 15% | Hacker-Mutant Dominant Class ---------------- Mutant | -10/Materials Scavenger-Mutant | -10/Mines Mutant | -9/Materials Mutant | -9/Mines Mutant | -9/Exiles Mutant | -8/Mines Hacker-Mutant | -8/Materials Resources | -11 -10 -10 -9 -9 -9 -8 -8 ----------- Run | Yrd Mat Min Mat Min Exi Min Mat Matter Collected 1012 | 260 161 96 209 54 . 50 182 Remotely . | . . . . . . . . Salvage Created 1816 | 113 169 51 333 243 . 153 754 Parts 116 | 7 16 6 28 17 . 1 41 Haulers Intercepted . | . . . . . . . . Recyclers Shooed 2 | 1 1 . . . . . . Parts Field Recycled . | . . . . . . . . Retrieved Matter . | . . . . . . . . Parts Self-Destructed . | . . . . . . . . Prevented . | . . . . . . . . Parts Restored . | . . . . . . . . Kills | -11 -10 -10 -9 -9 -9 -8 -8 ------- Run | Yrd Mat Min Mat Min Exi Min Mat Combat Hostiles Destroyed 39 | . 6 3 8 6 . 3 13 Melee 7 | . . . . . . . 7 Guns 32 | . 6 3 8 6 . 3 6 Classes Destroyed 9 | 2 4 . 1 2 . . . Builder 3 | . 1 . . . . . 2 Tunneler 1 | 1 . . . . . . . Recycler 2 | 1 . . . 1 . . . Operator 3 | . 1 . 1 . . . 1 Watcher 4 | . 1 . 2 . . . 1 Swarmer 16 | . 6 3 3 4 . . . Grunt 14 | . . . . 1 . 3 10 Brawler 1 | . . . . 1 . . . Sentry 8 | . . . 5 . . . 3 Best Kill Streak 9 | 1 3 3 5 5 . 3 9 Combat Bots Only 8 | . 3 3 4 2 . 3 8 Max Kills in Single Turn 2 | 1 2 2 1 1 . 1 1 Gunslinging 1 | . 1 1 . . . . . Exploded . | . . . . . . . . Melee 1 | . . . . . . . 1 Uniques/NPCs Destroyed . | . . . . . . . . Combat | -11 -10 -10 -9 -9 -9 -8 -8 -------- Run | Yrd Mat Min Mat Min Exi Min Mat Hostile Shots Fired 275 | . 20 13 51 7 . 22 162 Missed 97 | . 7 3 17 4 . 5 61 Hits 178 | . 13 10 34 3 . 17 101 Projectile 178 | . 13 10 34 3 . 17 101 Critical Strikes 7 | . 1 . . . . . 6 Damage Taken 3120 | . 96 78 405 20 . 308 2213 Core 778 | . 14 23 82 7 . 102 550 Absorbed by Shields . | . . . . . . . . Regen/Repaired (Parts) 62 | . . . . . . . 62 Core Remaining (%) 79 | 100 . 85 . . . 52 . Volleys Fired 69 | 7 14 3 25 10 . . 10 Largest 2 | 2 2 2 2 2 . . 1 Hottest 105 | 80 105 105 88 79 . . 80 Shots Fired 176 | 14 27 6 50 20 . 21 38 Gun 173 | 14 27 6 50 20 . 21 35 Cannon . | . . . . . . . . Launcher 3 | . . . . . . . 3 Special . | . . . . . . . . Kinetic 40 | . . . 30 10 . . . Thermal 108 | 7 12 3 20 10 . 21 35 Explosive 3 | . . . . . . . 3 Electromagnetic 25 | 7 15 3 . . . . . Robot Hit Streak 12 | 2 5 2 9 12 . 11 11 Robot Miss Streak 6 | 2 3 4 6 1 . 1 3 Penetration Max . | . . . . . . . . Secondary Targets 3 | . 1 1 . 1 . . . Max Gunslinging Chain 1 | . 1 1 . 1 . . . Autonomous 49 | . . . . . . 21 28 Shots Hit Robots 141 | 7 14 4 33 13 . 18 52 Core Hits 87 | 3 15 7 24 8 . 6 24 Critical Kills 1 | . . . 1 . . . . Critical Parts Destroyed . | . . . . . . . . Critical Strikes 5 | . . . 2 1 . . 2 Burn 2 | . . . 1 1 . . . Destroy 1 | . . . 1 . . . . Sever 2 | . . . . . . . 2 Melee Attacks 35 | . 5 . 1 . . . 29 Impact . | . . . . . . . . Slashing 35 | . 5 . 1 . . . 29 Piercing . | . . . . . . . . Sneak Attacks 3 | . . . . . . . 3 Combat Hostiles 1 | . . . . . . . 1 Follow-up Attacks 3 | . . . . . . . 3 Damage Inflicted 3372 | 98 173 36 463 255 . 577 1770 Guns 2387 | 98 173 36 463 255 . 541 821 Cannons . | . . . . . . . . Explosions 140 | . . . . . . 36 104 Melee 845 | . . . . . . . 845 Ramming . | . . . . . . . . Kinetic 381 | . . . 268 113 . . . Thermal 1867 | 32 74 26 195 142 . 577 821 Explosive 104 | . . . . . . . 104 Electromagnetic 175 | 66 99 10 . . . . . Impact . | . . . . . . . . Slashing 845 | . . . . . . . 845 Piercing . | . . . . . . . . Highest Corruption 6 | . 1 1 . . . . 6 Average Corruption 3 | . 1 1 . . . . 6 Corruption Purged . | . . . . . . . . Corruption Blocked . | . . . . . . . . Effects 9 | . 3 . . . . . 6 Message Errors 3 | . 1 . . . . . 2 Matter Fused 2 | . 1 . . . . . 1 Energy Discharges 1 | . . . . . . . 1 Parts Rejected 1 | . . . . . . . 1 Misfires 1 | . 1 . . . . . . Alerts 1 | . . . . . . . 1 Overload Shots . | . . . . . . . . Overflow Damage 143 | . . . . . . 18 125 Projectiles . | . . . . . . . . Explosions 34 | . . . . . . 18 16 Melee 109 | . . . . . . . 109 Knockbacks . | . . . . . . . . Impact . | . . . . . . . . Kinetic . | . . . . . . . . Secondary . | . . . . . . . . Self-Inflicted Damage 100 | . . . . . . 17 83 Shots 4 | . . . . . . 1 3 Rammed . | . . . . . . . . Targets Rammed . | . . . . . . . . Kicked . | . . . . . . . . Crushed . | . . . . . . . . Highest Temperature 261 | 90 225 145 261 130 . 19 136 Average Temperature 76 | 40 83 75 96 61 . 7 50 Received Heat Transfer 870 | . 6 . 81 . . 153 630 Siege Activations . | . . . . . . . . Martial Activations . | . . . . . . . . Shielding Activations . | . . . . . . . . Robots Disrupted . | . . . . . . . . Combat Hostiles . | . . . . . . . . Robots Corrupted . | . . . . . . . . Combat Hostiles . | . . . . . . . . Parts Fried . | . . . . . . . . Impact Corruptions . | . . . . . . . . Robots Melted . | . . . . . . . . Combat Hostiles . | . . . . . . . . Parts Melted 3 | . . . . . . 3 . Heat Transferred 2849 | 75 90 30 355 370 . 753 1176 Parts Sabotaged . | . . . . . . . . Parts Stolen . | . . . . . . . . Parts Stripped . | . . . . . . . . Power Chain Reactions . | . . . . . . . . Alert | -11 -10 -10 -9 -9 -9 -8 -8 ------- Run | Yrd Mat Min Mat Min Exi Min Mat Maximum Alert Level . | . . . . . . . . Low Security (%) 100 | 100 100 100 100 100 . 100 100 Level 1 . | . . . . . . . . Level 2 . | . . . . . . . . Level 3 . | . . . . . . . . Level 4 . | . . . . . . . . Level 5 . | . . . . . . . . High Security . | . . . . . . . . Max Security . | . . . . . . . . Peak Influence 169 | 5 121 105 169 113 . 80 158 Initial 45 | . . 45 33 18 . . . Average 47 | . 48 87 44 54 . 39 51 Influence Increases 1288 | 10 244 70 305 175 . 90 394 Destroy 0b10 Robot/C 780 | . 120 60 160 120 . 60 260 Destroy 0b10 Robot/NC 65 | 10 15 . 15 5 . . 20 Destroy Leader 188 | . 22 10 64 20 . 10 62 Successful Hack 55 | . 38 . 4 . . . 13 Disable Machine 15 | . . . . . . 15 . Destroy Structure 35 | . 4 . 2 . . 5 24 Partial Spotted 45 | . 15 . 30 . . . . Lose Combat Pursuer 105 | . 30 . 30 30 . . 15 Influence Decreases 1279 | 10 127 102 343 209 13 90 385 Entered New Map 166 | . . 72 52 29 13 . . Time Decay 783 | 10 127 20 141 180 . 90 215 Lost Part 180 | . . 10 . . . . 170 Purge Threat 150 | . . . 150 . . . . Squads Dispatched 7 | . . . 2 . . . 5 Investigation . | . . . . . . . . Extermination . | . . . . . . . . Reinforcement 7 | . . . 2 . . . 5 Assault . | . . . . . . . . Garrison . | . . . . . . . . Intercept . | . . . . . . . . Searches Triggered . | . . . . . . . . Construction Impeded 1 | . . . . . . . 1 Haulers Reinforced . | . . . . . . . . Active Scanning Responses . | . . . . . . . . Cargo Convoy Interrupts . | . . . . . . . . Stealth | -11 -10 -10 -9 -9 -9 -8 -8 --------- Run | Yrd Mat Min Mat Min Exi Min Mat Distress Signals 4 | . . . 3 . . . 1 Communications Jammed . | . . . . . . . . Distress Signals . | . . . . . . . . Times Spotted 70 | . 11 3 17 8 . 3 28 Peak Tracking Total 8 | . 3 3 6 4 . 3 8 Tactical Retreats 5 | . 1 . 2 1 . . 1 Traps | -11 -10 -10 -9 -9 -9 -8 -8 ------- Run | Yrd Mat Min Mat Min Exi Min Mat Traps Triggered . | . . . . . . . . Indirectly . | . . . . . . . . Trap Hack Attempts . | . . . . . . . . Triggered . | . . . . . . . . Disarmed . | . . . . . . . . Reprogrammed . | . . . . . . . . Reused . | . . . . . . . . Traps Extracted . | . . . . . . . . Installed . | . . . . . . . . Triggered . | . . . . . . . . Objects Rigged 2 | . 2 . . . . . . Machines | -11 -10 -10 -9 -9 -9 -8 -8 ---------- Run | Yrd Mat Min Mat Min Exi Min Mat Machines Disabled 1 | . . . . . . 1 . Max in Single Turn 1 | . . . . . . 1 . Machines Repaired . | . . . . . . . . Machines Dismantled . | . . . . . . . . Machines Sabotaged . | . . . . . . . . Overloaded Fab Kills . | . . . . . . . . Hacking | -11 -10 -10 -9 -9 -9 -8 -8 --------- Run | Yrd Mat Min Mat Min Exi Min Mat Machines Accessed 21 | . 9 . 3 1 1 1 6 Terminals 15 | . 8 . 3 . . 1 3 Fabricators . | . . . . . . . . Repair Stations 1 | . . . . . . . 1 Recycling Units 1 | . 1 . . . . . . Scanalyzers 2 | . . . . . . . 2 Garrison Access . | . . . . . . . . Total Hacks 66 | . 25 . 9 1 1 2 28 Successful 41 | . 15 . 3 1 1 1 20 Failed 24 | . 10 . 6 . . 1 7 Catastrophic 4 | . 1 . 3 . . . . Database Lockouts 1 | . . . . . . . 1 Manual 46 | . 23 . 8 . 1 2 12 Terminals 47 | . 24 . 9 . . 2 12 Fabricators . | . . . . . . . . Repair Stations 2 | . . . . . . . 2 Recycling Units 1 | . 1 . . . . . . Scanalyzers 14 | . . . . . . . 14 Garrison Access . | . . . . . . . . Terminal Hacks 12 | . 5 . 1 1 1 . 4 Part Schematic 1 | . . . . . . . 1 Robot Analysis 3 | . 3 . . . . . . Open Door 1 | . . . . 1 . . . Level Access Points 1 | . . . . . . . 1 Branch Access Points 2 | . 1 . . . . . 1 Terminal Index 1 | . 1 . . . . . . Unreport Threat 1 | . . . 1 . . . . Zone Layout 1 | . . . . . . . 1 Proto ID Catalog 1 | . . . . . 1 . . Fabricator Hacks . | . . . . . . . . Repair Station Hacks 2 | . . . . . . . 2 Scan Component 1 | . . . . . . . 1 Repair 1 | . . . . . . . 1 Recycling Unit Hacks 1 | . 1 . . . . . . Retrieve Components 1 | . 1 . . . . . . Scanalyzer 13 | . . . . . . . 13 Insert Component 6 | . . . . . . . 6 Analyze 6 | . . . . . . . 6 Retrieve Study 1 | . . . . . . . 1 Garrison Access Hacks . | . . . . . . . . Unauthorized Hacks 13 | . 9 . 2 . . 1 1 Terminals 13 | . 9 . 2 . . 1 1 Botnet 11 | . 7 . 2 . . 1 1 Detonate 1 | . 1 . . . . . . Skim 1 | . 1 . . . . . . Fabricators . | . . . . . . . . Repair Stations . | . . . . . . . . Recycling Units . | . . . . . . . . Scanalyzers . | . . . . . . . . Garrison Access . | . . . . . . . . Data Cores Recovered 1 | . 1 . . . . . . Used 1 | . 1 . . . . . . Hacking Detections 15 | . 7 . 3 . . 1 4 Full Trace Events . | . . . . . . . . Feedback Events . | . . . . . . . . Feedback Blocked . | . . . . . . . . Robot Schematics Acquired . | . . . . . . . . Robots Built . | . . . . . . . . Authchips . | . . . . . . . . Time . | . . . . . . . . Total Robot Build Rating . | . . . . . . . . Part Schematics Acquired 7 | . . . . . . . 7 Parts Built . | . . . . . . . . Authchips . | . . . . . . . . Time . | . . . . . . . . Total Part Build Rating . | . . . . . . . . Part Studies Acquired 1 | . . . . . . . 1 Parts Repaired 1 | . . . . . . . 1 Time 38 | . . . . . . . 38 Parts Recycled . | . . . . . . . . Recycled Matter . | . . . . . . . . Retrieved Matter . | . . . . . . . . Retrieved Components 2 | . 2 . . . . . . Parts Scanalyzed 6 | . . . . . . . 6 Part Schematics Acquired 6 | . . . . . . . 6 Parts Damaged . | . . . . . . . . Bothacking | -11 -10 -10 -9 -9 -9 -8 -8 ------------ Run | Yrd Mat Min Mat Min Exi Min Mat Used RIF Installer . | . . . . . . . . Robots Hacked . | . . . . . . . . Non-combat . | . . . . . . . . Combat . | . . . . . . . . Robot Hacks Applied . | . . . . . . . . Relay Couplers Released . | . . . . . . . . Fabnet Peak Effective % . | . . . . . . . . Robots Rewired . | . . . . . . . . Allies Hacked . | . . . . . . . . Hacks Repelled . | . . . . . . . . Allies | -11 -10 -10 -9 -9 -9 -8 -8 -------- Run | Yrd Mat Min Mat Min Exi Min Mat Total Allies . | . . . . . . . . Largest Group . | . . . . . . . . Highest-Rated Group . | . . . . . . . . Highest-Rated Ally . | . . . . . . . . Total Orders . | . . . . . . . . Ally Attacks . | . . . . . . . . Total Damage . | . . . . . . . . Kills . | . . . . . . . . Allies Corrupted . | . . . . . . . . Allies Melted . | . . . . . . . . Intel | -11 -10 -10 -9 -9 -9 -8 -8 ------- Run | Yrd Mat Min Mat Min Exi Min Mat Active Infowar (turns) 597 | 15 395 49 138 . . . . Seismic 597 | 15 395 49 138 . . . . Robot Analysis Total 3 | . 3 . . . . . . Derelict Logs Recovered 3 | . . 2 . 1 . . . Drone Launches . | . . . . . . . . Drone Recoveries . | . . . . . . . . Exploration | -11 -10 -10 -9 -9 -9 -8 -8 ------------- Run | Yrd Mat Min Mat Min Exi Min Mat Turns Passed 2823 | 117 433 49 302 374 671 189 688 Spaces Moved 2059 | 74 428 76 245 343 425 100 368 Core 16 | 11 1 . . . . . 4 Treads . | . . . . . . . . Legs 1619 | 63 158 . 166 343 425 100 364 Wheels . | . . . . . . . . Hover . | . . . . . . . . Flight 424 | . 269 76 79 . . . . Fastest Speed 34 | 50 37 37 34 90 90 180 100 Average Speed 107 | 109 69 38 71 90 156 180 127 Slowest Speed 900 | 120 150 117 90 90 180 180 900 Overloaded Moves . | . . . . . . . . Propulsion Burnouts . | . . . . . . . . Robots Hopped . | . . . . . . . . Potential Cave-ins . | . . . . . . . . Cave-ins Triggered 1 | . . . . . . . 1 Exploration Rate (%) 42 | 4 77 28 30 72 69 33 25 Regions Visited 7 Branch Regions 4 Pre-discovered Areas 2 | . . 1 . 1 . . . Known Exits Taken 1 | . 1 . . . . . . Unknown Exits Taken 6 | 1 . 1 1 1 1 1 . Scrap Searched 3 | . . 1 . . . 2 . Spaces Dug 9 | . 4 . 1 . . . 4 Terrain Destroyed 35 | . 4 . 1 . . 5 25 Melee 9 | . 4 . 1 . . . 4 Projectile 6 | . . . . . . 1 5 AOE 20 | . . . . . . 4 16 Terrain Rammed . | . . . . . . . . Walls Destroyed . | . . . . . . . . Machines Disabled . | . . . . . . . . Actions | -11 -10 -10 -9 -9 -9 -8 -8 --------- Run | Yrd Mat Min Mat Min Exi Min Mat Total 2494 | 93 526 89 321 389 432 110 534 Wait 157 | . 40 1 13 33 . 6 64 Move 2052 | 73 427 75 244 342 424 99 368 Hop . | . . . . . . . . Pick Up 45 | 5 9 . 8 2 3 2 16 Fast Attach 34 | 6 7 1 10 . 1 . 9 Attach 25 | 1 2 1 2 . . 2 17 Detach 10 | . . . 1 . . 1 8 Swap 25 | . 9 5 3 . 2 . 6 Drop 45 | 1 13 3 14 2 2 . 10 Fire 69 | 7 14 3 25 10 . . 10 Melee 32 | . 5 . 1 . . . 26 Ram . | . . . . . . . . Kick . | . . . . . . . . Crush . | . . . . . . . . Escape Stasis . | . . . . . . . . Rewire . | . . . . . . . . Trap . | . . . . . . . . Miscellaneous . | . . . . . . . . Route ------- -11/Scrapyard -10/Materials (discovered 4 exits: *Mat x2 / *Min x2) -10/Mines -9/Materials (discovered 3 exits: *Mat / *Min / [*Sto]) -9/Mines (discovered 3 exits: *Mat x2 / *Exi) -9/Exiles -8/Mines -8/Materials (discovered 3 exits: *Fac x3) History --------- Turn | Location | Event 6 | -11/Scrapyard | Discovered new exit (range 15) 118 | -11/Scrapyard | Entered Materials 275 | -10/Materials | Discovered new exit (range 13) 308 | -10/Materials | Build established: Mutant 403 | -10/Materials | Discovered new exit (range 11) 409 | -10/Materials | Discovered new exit (range 9) 543 | -10/Materials | Identified exit to Mines 551 | -10/Materials | Entered Mines 553 | -10/Mines | Learned Materials security intel 562 | -10/Mines | Met a Derelict bent on vengeance 597 | -10/Mines | Learned location of Mines (-9) 599 | -10/Mines | Discovered new exit (range 6) 600 | -10/Mines | Entered Materials 600 | -9/Materials | Evolved 2 slots: Power x1, Propulsion x1 601 | -9/Materials | Discovered new exit (range 15) 671 | -9/Materials | Build established: Scavenger-Mutant 820 | -9/Materials | Discovered new exit (range 16) 871 | -9/Materials | Discovered new exit (range 16) 902 | -9/Materials | Entered Mines 911 | -9/Mines | Discovered new exit (range 9) 967 | -9/Mines | Met a Derelict who couldn't figure out how to use a Trap Extractor 999 | -9/Mines | Build established: Mutant 1070 | -9/Mines | Discovered new exit (range 5) 1262 | -9/Mines | Assembled infested the area 1273 | -9/Mines | Deemed a non-threat by the Exiles lab entrance 1273 | -9/Mines | Discovered new exit (range 5) 1276 | -9/Mines | Entered Exiles 1299 | -9/Exiles | Met 8R-AWN 1312 | -9/Exiles | Met EX-HEX 1338 | -9/Exiles | Met EX-BIN 1351 | -9/Exiles | Aligned with FarCom system 1352 | -9/Exiles | Given EX-Vault access code 1373 | -9/Exiles | Opened EX-Vault 1383 | -9/Exiles | Found AWS/Thermal 1423 | -9/Exiles | Warned to stay clear of 0b10 Research branches 1718 | -9/Exiles | Met EX-DEC 1929 | -9/Exiles | Discovered new exit (range 12) 1947 | -9/Exiles | Left Exiles lab with AWS/Thermal 1947 | -9/Exiles | Entered Mines 2105 | -8/Mines | Discovered new exit (range 7) 2136 | -8/Mines | Entered Materials 2136 | -8/Materials | Evolved 2 slots: Propulsion x1, Utility x1 2431 | -8/Materials | Repaired VSS Leg 2441 | -8/Materials | Build established: Hacker-Mutant 2478 | -8/Materials | Central database locked down 2513 | -8/Materials | Crushed by falling debris 2604 | -8/Materials | Lost 8 parts (3p4n1w) 2632 | -8/Materials | Destroyed 8 combat bots 2726 | -8/Materials | Identified exit to Factory 2799 | -8/Materials | Core integrity fell below 50% 2819 | -8/Materials | Core integrity fell below 20% 2824 | -8/Materials | Destroyed by G-47 Trooper with Particle Gun Last Messages --------------- Acquired 5 matter. AWS/Thermal destroyed. Knocked back. Lgt. Deuterium Engine destroyed. Destroyed Lgt. Deuterium Engine. H-61 Shepherd calls for reinforcements. ALERT: Hostile activity reported, dispatching reinforcements to area. Penetrated by Slug. Imp. Grenade Launcher destroyed. Knocked back. Lgt. Nuclear Core destroyed. Aluminum Leg destroyed. The unstable cave ceiling collapses. Aluminum Leg destroyed. Critical hit (Destroy). Gatling Laser destroyed. Dropped Hcp. Storage Unit. Katana destroyed. Acquired 2 matter. Map ----- +----------------------------------------------------+ | ?# "" ## "" # """ # #[ ! #??? | | ?# ""S|## # """ # # ] ##??? | | ?# ""==##=[=! + """ # # #???? | | ?# !*[##!= ! # # ########???? | | ?#! !%####### " " # #?######???? | | ?#! % ######## "R" # #? #???? | | #####+### %% ## """ # # #???? | | ! ! ## [%==# # #???? | | ^^ #######+### + #???? | | ^ % w != # #???? | | #####+### ! [ # #???? | | ## ##%[ ###############?######???? | | ## " ##= %##???????????????????????? | | ## T ## %!##########???????????????? | | ## " ##%[ ## #???????????????? | | ## ##[! ## ###?????????????? | | ## ##= ## ! # #########?????? | | #### ## ## # [[ #?????? | | ######### # """ # """ [ #?????? | | # """"" + """ #?????? | | T + """"" #x""" #?????? | | % # """"" #%!! #?????? | | ######### !# """ #!|[! ##????? | | ????????## ## !%% #*!% #????? | | ????????## ## !x #????? | | ?????????# ########### @ ##????? | | ?????????# #?# ## H #?????? | | ?????????# #?#""" ## gg < #????? | | ?????????# #?#""" ##g ##????? | | ?????????# #?#""" ## ##????? | | ?????????# #?# ## #! ????? | | ?????????# #?# ## # ???? | | ??########g #######+### + """#?? | | ??# g ! #? """#?? | | ??# #? ""???? | | ??# """ """ #?? ""???? | | ??????????????????????G" ##??! ""???? | | ???????????????????????" ????? ????? | | ??????????????????????? ?????? ?????? | | ??????????????????????? ????????????? | | ???????????????????w???? ????????????? | | ??????????????????????????????????????? | | ??????????????????????????????????????? | | ??????????????????????????????????????? | | ??????????????????????????????????????? | | ??????????????????????????????????????? | | ??????????????????????????????????????? | | ??????????????????????????????????????? | | ??????????????????????????????????????? | | ??????????????????????????????????????? | +----------------------------------------------------+ Best States ------------- Heat Dissipation 31 Energy Generation 23 Energy Capacity 380 Matter Stores 300 Matter Capacity 300 Sight Range 16 Terrain Scan Density 10 Armor Coverage 150 Evasion (%) 63 Offensive Hacking 20 Item Schematics ----------------- Hacking Suite | -8/Materials | Hacked VSS Leg | -8/Materials | Scanalyzed Katana | -8/Materials | Scanalyzed Axe | -8/Materials | Scanalyzed Hcp. Battery | -8/Materials | Scanalyzed Gatling Laser | -8/Materials | Scanalyzed Melee Analysis Suite | -8/Materials | Scanalyzed Robot Schematics ------------------ None Fabricated ------------ Nothing Repaired ---------- VSS Leg | 31% | -8/Materials Studied --------- Carbon-fiber Leg | -8/Materials | Hacked Alien Tech Used ----------------- None Achievements -------------- Drive-By Challenges ------------ None Game ------ Seed RemoteGravityHammerchucker Manual? 0 Play Time 01:03:11 Cumulative 58.1 hours Start 2026.08.24 @ 11:43:44 End 2026.08.24 @ 13:02:53 Sessions 1 Manual Loads 0 Difficulty Rogue Special Mode None Game No. 73 Rogue 73 Adventurer 0 Explorer 0 Win Type - Total 0 Types 0/0/0/0/0/0/0/0/0/0 Lore% 43 Gallery% 33 Achievement% 29 Wizard Run 0 Options --------- Layout 1 ASCII 0 Keyboard 0 Movement Mouse Keybinds 0 Fullscreen 2 Font 18/SmallcapsGlow Map View 51x43 Zoom Use 0% Tactical HUD 0 Map Filters NONE Filters NONE Steam 1 RUN: 67deae11-4c70-4443-a532-f382596398a1